Cogmind - Beta 11.1 @@@ ROGUE MODE // 2022.07.25 @ 16:54:49 Player: gorb Result: Destroyed by Y-45 Defender with Heavy Assault Rifle Performance ------------- Evolutions (1) 500 Regions Visited (3) 600 Robots Destroyed (21) 105 Value Destroyed (320) 320 Prototype IDs (0) 0 Alien Tech Used (0) 0 Bonus (0) 0 TOTAL SCORE: 1525 Bonus ------- None Cogmind --------- Core Integrity 0/400 Matter 89/300 Energy 100/100 System Corruption 0% Temperature Cool (9) Movement Core (1350) Ox26 Location -9/Materials Parts ------- > --- POWER (1) -------- (None) > --- PROPULSION (3) --- (None) > --- UTILITY (3) ------ Huge Storage Unit Signal Interpreter > --- WEAPON (2) ------- (None) > --- INVENTORY (25) --- Light Nuclear Core Aluminum Leg Aluminum Leg Hover Unit Improved Targeting Computer Peak State ------------ > --- POWER ------------ Light Nuclear Core > --- PROPULSION ------- Titanium Leg Titanium Leg Hover Unit > --- UTILITY ---------- Huge Storage Unit Signal Interpreter Recoil Stabilizer > --- WEAPON ----------- (None) > --- INVENTORY -------- Light Nuclear Core Aluminum Leg Aluminum Leg Hover Unit [Rating: 15] Favorites ----------- Power Ion Engine Engine Ion Engine Power Core Light Nuclear Core Propulsion Compact Wheel Leg Aluminum Leg Wheel Compact Wheel Hover Unit Hover Unit Utility Huge Storage Unit Device Recoil Stabilizer Storage Huge Storage Unit Processor Signal Interpreter Protection Light Armor Plating Weapon Light Assault Rifle Ballistic Gun Light Assault Rifle Launcher Rocket Launcher Build | -11 -10 -10 -9 ------- Run | Scr Mat Min Mat Slots Evolved 2 | . . . 2 Power . | . . . . Propulsion 1 | . . . 1 Utility 1 | . . . 1 Weapon . | . . . . Parts Attached 25 | 2 7 11 5 Power 3 | . 1 1 1 Engine 2 | . 1 1 . Core 1 | . . . 1 Reactor . | . . . . Propulsion 13 | 2 2 6 3 Treads . | . . . . Leg 6 | 2 . 2 2 Wheel 4 | . 2 2 . Hover 3 | . . 2 1 Flight . | . . . . Utility 5 | . 2 2 1 Device 1 | . . . 1 Storage 2 | . 1 1 . Processor 1 | . . 1 . Hackware . | . . . . Protection 1 | . 1 . . Artifact . | . . . . Weapon 4 | . 2 2 . Energy Gun . | . . . . Energy Cannon . | . . . . Ballistic Gun 1 | . 1 . . Ballistic Cannon . | . . . . Launcher 3 | . 1 2 . Special Weapon . | . . . . Impact Weapon . | . . . . Slashing Weapon . | . . . . Piercing Weapon . | . . . . Special Melee Weapon . | . . . . Unidentified Prototypes . | . . . . Parts Lost 13 | . . 8 5 Power 3 | . . 2 1 Propulsion 5 | . . 2 3 Utility 2 | . . 1 1 Weapon 3 | . . 3 . Highest Loss Streak 3 | . . 3 3 To Critical Strikes . | . . . . Average Slot Usage (%) 79 | . 82 92 58 Engine 7 | . 14 11 . Core 1 | . . . 4 Leg 9 | . . 3 20 Wheel 15 | . 28 22 . Hover 2 | . . . 8 Device 1 | . . . 3 Storage 12 | . 5 14 11 Processor 7 | . . 7 11 Protection 4 | . 10 6 . Ballistic Gun 8 | . 14 13 . Launcher 7 | . 10 12 . Naked Turns . | . . . . Heaviest Build 90 | . 32 90 86 Greatest Support 34 | 20 26 26 34 Greatest Overweight (x) 26 | . 1 5 26 Average Overweight (x) 1 | . . 1 2 Largest Inventory Capacity 25 | 5 15 25 25 Average Capacity 19 | 5 8 20 25 Most Carried 8 | 5 5 8 6 Average Carried 4 | 4 4 5 3 Final Capacity 25 | 5 15 25 25 Final Carried 5 | 5 4 2 5 Class Distribution -------------------- 100% | Mutant Dominant Class ---------------- Mutant | -10/Materials Mutant | -10/Mines Mutant | -9/Materials Resources | -11 -10 -10 -9 ----------- Run | Scr Mat Min Mat Matter Collected 376 | 220 22 134 . Remotely . | . . . . Salvage Created 289 | . 122 167 . Parts 36 | . 21 15 . Haulers Intercepted . | . . . . Recyclers Shooed . | . . . . Parts Field Recycled . | . . . . Retrieved Matter . | . . . . Parts Self-Destructed . | . . . . Prevented . | . . . . Kills | -11 -10 -10 -9 ------- Run | Scr Mat Min Mat Combat Hostiles Destroyed 15 | . 5 10 . Guns 4 | . . 4 . AOE 11 | . 5 6 . Classes Destroyed 5 | . 4 1 . Worker 1 | . . 1 . Builder 3 | . 3 . . Watcher 2 | . 2 . . Swarmer 11 | . 3 8 . Grunt 4 | . 2 2 . Best Kill Streak 6 | . 5 6 . Combat Bots Only 6 | . 3 6 . Max Kills in Single Turn 4 | . 4 4 . Gunslinging . | . . . . Exploded 4 | . 2 4 . Melee . | . . . . Uniques/NPCs Destroyed . | . . . . Combat | -11 -10 -10 -9 -------- Run | Scr Mat Min Mat Damage Taken 1790 | . 141 684 965 Core 607 | . 51 143 413 Absorbed by Shields . | . . . . Core Remaining (%) 61 | 100 . 22 . Volleys Fired 51 | . 9 42 . Largest 2 | . 1 2 . Hottest 50 | . 30 50 . Shots Fired 52 | . 9 43 . Gun 36 | . . 36 . Cannon . | . . . . Launcher 16 | . 9 7 . Special . | . . . . Kinetic 36 | . . 36 . Thermal . | . . . . Explosive 16 | . 9 7 . Electromagnetic . | . . . . Robot Hit Streak 7 | . 4 7 . Robot Miss Streak 6 | . 2 6 . Penetration Max . | . . . . Secondary Targets . | . . . . Shots Hit Robots 25 | . 5 20 . Core Hits 28 | . 13 15 . Critical Kills . | . . . . Critical Parts Destroyed . | . . . . Critical Strikes . | . . . . Melee Attacks . | . . . . Impact . | . . . . Slashing . | . . . . Piercing . | . . . . Sneak Attacks . | . . . . Combat Hostiles . | . . . . Follow-up Attacks . | . . . . Damage Inflicted 1226 | . 611 615 . Guns 148 | . . 148 . Cannons . | . . . . Explosions 1078 | . 611 467 . Melee . | . . . . Ramming . | . . . . Kinetic 148 | . . 148 . Thermal . | . . . . Explosive 1078 | . 611 467 . Electromagnetic . | . . . . Impact . | . . . . Slashing . | . . . . Piercing . | . . . . Highest Corruption . | . . . . Average Corruption . | . . . . Corruption Purged . | . . . . Corruption Blocked . | . . . . Overload Shots . | . . . . Overflow Damage 43 | . 28 15 . Projectiles . | . . . . Explosions 43 | . 28 15 . Melee . | . . . . Knockbacks . | . . . . Impact . | . . . . Kinetic . | . . . . Secondary . | . . . . Self-Inflicted Damage 152 | . 48 104 . Shots 7 | . 4 3 . Rammed . | . . . . Targets Rammed . | . . . . Kicked . | . . . . Crushed . | . . . . Highest Temperature 20 | . 20 10 16 Average Temperature 7 | . 13 4 8 Received Heat Transfer 576 | . 27 171 378 Siege Activations . | . . . . Robots Corrupted . | . . . . Combat Hostiles . | . . . . Parts Fried . | . . . . Impact Corruptions . | . . . . Robots Melted . | . . . . Combat Hostiles . | . . . . Parts Melted . | . . . . Heat Transferred . | . . . . Parts Sabotaged . | . . . . Parts Stolen . | . . . . Parts Stripped . | . . . . Power Chain Reactions . | . . . . Missiles Intercepted . | . . . . Alert | -11 -10 -10 -9 ------- Run | Scr Mat Min Mat Peak Influence 418 | . 239 418 153 Initial 138 | . . 93 138 Average 175 | . 93 228 136 Maximum Alert Level 2 | . 1 2 . Low Security (%) 68 | 100 81 44 100 Level 1 30 | . 18 54 . Level 2 . | . . . . Level 3 . | . . . . Level 4 . | . . . . Level 5 . | . . . . High Security . | . . . . Max Security . | . . . . Squads Dispatched . | . . . . Investigation . | . . . . Extermination . | . . . . Reinforcement . | . . . . Assault . | . . . . Garrison . | . . . . Intercept . | . . . . Searches Triggered . | . . . . Construction Impeded . | . . . . Haulers Reinforced . | . . . . Active Scanning Responses . | . . . . Cargo Convoy Interrupts . | . . . . Stealth | -11 -10 -10 -9 --------- Run | Scr Mat Min Mat Distress Signals 1 | . . . 1 Communications Jammed . | . . . . Distress Signals . | . . . . Times Spotted 32 | . 7 20 5 Peak Tracking Total 6 | . 4 6 4 Tactical Retreats 4 | . . 4 . Traps | -11 -10 -10 -9 ------- Run | Scr Mat Min Mat Traps Triggered . | . . . . Indirectly . | . . . . Trap Hack Attempts . | . . . . Triggered . | . . . . Disarmed . | . . . . Reprogrammed . | . . . . Reused . | . . . . Traps Extracted . | . . . . Installed . | . . . . Triggered . | . . . . Machines | -11 -10 -10 -9 ---------- Run | Scr Mat Min Mat Machines Disabled . | . . . . Max in Single Turn . | . . . . Machines Sabotaged . | . . . . Garrisons Compromised . | . . . . Overloaded Fab Kills . | . . . . Hacking | -11 -10 -10 -9 --------- Run | Scr Mat Min Mat Machines Accessed 1 | . 1 . . Terminals 1 | . 1 . . Fabricators . | . . . . Repair Stations . | . . . . Recycling Units . | . . . . Scanalyzers . | . . . . Garrison Access . | . . . . Total Hacks 1 | . 1 . . Successful 1 | . 1 . . Failed . | . . . . Catastrophic . | . . . . Database Lockouts . | . . . . Manual . | . . . . Terminals 1 | . 1 . . Fabricators . | . . . . Repair Stations . | . . . . Recycling Units . | . . . . Scanalyzers . | . . . . Garrison Access . | . . . . Terminal Hacks 1 | . 1 . . Zone Layout 1 | . 1 . . Fabricator Hacks . | . . . . Repair Station Hacks . | . . . . Recycling Unit Hacks . | . . . . Scanalyzer . | . . . . Garrison Access Hacks . | . . . . Unauthorized Hacks . | . . . . Terminals . | . . . . Fabricators . | . . . . Repair Stations . | . . . . Recycling Units . | . . . . Scanalyzers . | . . . . Garrison Access . | . . . . Data Cores Recovered . | . . . . Used . | . . . . Hacking Detections . | . . . . Full Trace Events . | . . . . Feedback Events . | . . . . Feedback Blocked . | . . . . Robot Schematics Acquired . | . . . . Robots Built . | . . . . Authchips . | . . . . Time . | . . . . Total Robot Build Rating . | . . . . Part Schematics Acquired . | . . . . Parts Built . | . . . . Authchips . | . . . . Time . | . . . . Total Part Build Rating . | . . . . Parts Repaired . | . . . . Time . | . . . . Parts Recycled . | . . . . Recycled Matter . | . . . . Retrieved Matter . | . . . . Retrieved Components . | . . . . Parts Scanalyzed . | . . . . Part Schematics Acquired . | . . . . Parts Damaged . | . . . . Bothacking | -11 -10 -10 -9 ------------ Run | Scr Mat Min Mat Used RIF Installer . | . . . . Robots Hacked . | . . . . Non-combat . | . . . . Combat . | . . . . Robot Hacks Applied . | . . . . Relay Couplers Released . | . . . . Fabnet Peak Effective % . | . . . . Robots Rewired . | . . . . Allies Hacked . | . . . . Hacks Repelled . | . . . . Allies | -11 -10 -10 -9 -------- Run | Scr Mat Min Mat Total Allies . | . . . . Largest Group . | . . . . Highest-Rated Group . | . . . . Highest-Rated Ally . | . . . . Total Orders . | . . . . Ally Attacks . | . . . . Total Damage . | . . . . Kills . | . . . . Allies Corrupted . | . . . . Allies Melted . | . . . . Intel | -11 -10 -10 -9 ------- Run | Scr Mat Min Mat Robot Analysis Total . | . . . . Derelict Logs Recovered 1 | . . 1 . Drone Launches . | . . . . Drone Recoveries . | . . . . Exploration | -11 -10 -10 -9 ------------- Run | Scr Mat Min Mat Turns Passed 1079 | 42 115 570 352 Spaces Moved 597 | 37 89 358 113 Core 16 | 14 . . 2 Treads . | . . . . Legs 153 | 23 . 19 111 Wheels 428 | . 89 339 . Hover . | . . . . Flight . | . . . . Fastest Speed 50 | 50 90 105 270 Average Speed 158 | 93 95 133 309 Slowest Speed 1350 | 120 105 400 1350 Overloaded Moves . | . . . . Propulsion Burnouts . | . . . . Robots Hopped . | . . . . Cave-ins Triggered . | . . . . Exploration Rate (%) 19 | 3 16 46 12 Regions Visited 3 Branch Regions 1 Pre-discovered Areas . | . . . . Known Exits Taken 1 | . . 1 . Unknown Exits Taken 2 | 1 1 . . Scrap Searched 1 | . . 1 . Spaces Dug . | . . . . Terrain Destroyed 125 | . 49 76 . Melee . | . . . . Projectile . | . . . . AOE 125 | . 49 76 . Terrain Rammed . | . . . . Walls Destroyed . | . . . . Machines Disabled . | . . . . Actions | -11 -10 -10 -9 --------- Run | Scr Mat Min Mat Total 693 | 43 109 415 126 Wait 2 | . . . 2 Move 594 | 36 88 357 113 Hop . | . . . . Pick Up 19 | 5 4 4 6 Fast Attach 3 | 2 1 . . Attach 12 | . 4 5 3 Detach . | . . . . Swap 10 | . 2 6 2 Drop 2 | . 1 1 . Fire 51 | . 9 42 . Melee . | . . . . Ram . | . . . . Kick . | . . . . Crush . | . . . . Escape Stasis . | . . . . Rewire . | . . . . Trap . | . . . . Miscellaneous . | . . . . Route ------- -11/Scrapyard -10/Materials -10/Mines -9/Materials (discovered 1 exit: Min) History --------- Turn | Location | Event 7 | -11/Scrapyard | Discovered new exit (range 15) 43 | -11/Scrapyard | Entered Materials 111 | -10/Materials | Discovered new exit (range 15) 158 | -10/Materials | Entered Mines 206 | -10/Mines | Received a Rocket Launcher from a helpful Derelict 309 | -10/Mines | Build established: Mutant 612 | -10/Mines | Lost 3 parts (1p1n1w) 640 | -10/Mines | Learned location of 1 exit from Materials 649 | -10/Mines | Core integrity fell below 50% 664 | -10/Mines | Discovered new exit (range 9) 724 | -10/Mines | Identified exit to Materials 728 | -10/Mines | Entered Materials 728 | -9/Materials | Evolved 2 slots: Propulsion x1, Utility x1 729 | -9/Materials | Identified exit to Mines 758 | -9/Materials | Lost 3 parts (1p2w) 1036 | -9/Materials | Lost 3 parts (1p1n1u) 1067 | -9/Materials | Core integrity fell below 50% 1076 | -9/Materials | Core integrity fell below 20% 1080 | -9/Materials | Destroyed by Y-45 Defender with Heavy Assault Rifle Last Messages --------------- PARAMETERS=PROPULSION+1,UTILITY+1 LOCATION=MATERIALS GOAL=ESCAPE Loading 1 Materials exit... K-01 Serf collects debris. K-01 Serf cleans the Material Processor. K-01 Serf collects debris. Acquired Titanium Leg. Acquired Recoil Stabilizer. Acquired Lgt. Nuclear Core. Acquired Imp. Targeting Computer. W-16 Scout sends out distress signal. Hover Unit destroyed. Critical hit (Burn: +37). Lgt. Nuclear Core destroyed. Recoil Stabilizer destroyed. Processing Tank disabled. Critical hit (Burn: +37). Titanium Leg destroyed. Critical hit (Burn: +37). Map ----- +----------------------------------------------------+ | ?????????????????????????????????????????????????? | | ?????????????????????????????????????????????????? | | ?????????????????????????????????????????????????? | | ?????????????????????????????????????????????????? | | ?????????????????????????????????????????????????? | | ?????????????????????????????????????????????????? | | ?????????????????????????????????????????????????? | | ?????????????????????????????????????????????????? | | ?????????????????????????????????????????????????? | | ?????????????????????????????????????????????????? | | ?????????????????????????????????????????????????? | | ?????????????????????????????????????????????????? | | ?????????????????????????????????????????????????? | | ?? ??????????? ??????????????????????????????????? | | ?? ??????????? #?????????????????????????????????? | | ?? ??????????? #?????????????????????????????????? | | ?? ??????????? #?????????????????????????????????? | | ?# ??????????? #??????##########?????????????????? | | ?# ??????????? #??????# #?????????????????? | | ## ##????????? #??????# """#?????????????????? | | ########## #??????# """#?????????????????? | | #??????# ""#?????????????????? | | #??????# """#?????????????????? | | ######## """#?????????????????? | | """ !! #!!**==# #?????????????????? | | """"" !! #! # @Y #?????????????????? | | """"" ! # # Y #?????????????????? | | " """"" # ###/#########??????????????? | | T """ ????????? | | " a ????????? | | ????????? | | ##################### "?????????? | | #######"T"## #?????????????????????????????????? | | ??????#"""## #?????????????????????????????????? | | ??????###### ##????????????????????????????????? | | ??????????# ###########??????????????????????? | | ??????????# #??????????????????????? | | ??????????# #??????????????????????? | | ??????????# = #??????????????????????? | | ??????????# ###"### #??????????????????????? | | ??????????######## # #??????????????????????? | | ?????????????????# # #??????????????????????? | | ?????????????????# # #??????????????????????? | | ?????????????????# #####??????????????????????? | | ?????????????????# #??????????????????????????? | | ?????????????????# #??????????????????????????? | | ?????????????????# #??????????????????????????? | | ?????????????????? #??????????????????????????? | | ??????????????????####???????????????????????????? | | | +----------------------------------------------------+ Best States ------------- Heat Dissipation 28 Energy Generation 14 Energy Capacity 250 Matter Stores 300 Matter Capacity 300 Sight Range 16 Terrain Scan Density 10 Armor Coverage 150 Evasion (%) 55 Recoil Reduction 4 Item Schematics ----------------- None Robot Schematics ------------------ None Fabricated ------------ Nothing Alien Tech Used ----------------- None Achievements -------------- Let's See Who's Tougher Challenges ------------ None Game ------ Seed PhasingCloakLeg Manual? 0 Play Time 00:15:25 Cumulative 3.3 hours Start 2022.07.25 @ 16:24:05 End 2022.07.25 @ 16:54:49 Sessions 1 Manual Loads 0 Difficulty Rogue Special Mode None Game No. 8 Rogue 8 Adventurer 0 Explorer 0 Win Type - Total 0 Types 0/0/0/0/0/0/0/0/0 Lore% 1 Gallery% 6 Achievement% 7 Wizard Run 0 Options --------- ASCII 0 Keyboard 0 Movement Mouse Keybinds 0 Fullscreen 1 Font 18/Smallcaps Map View 76x50 Tactical HUD 0 Map Filters NONE Filters NONE Steam 1 RUN: b73aeb4e-1022-4a87-8015-0e4f5d9f789a